Workbook

Sheet Sheet1
A1: Beaufort County Schools and Enrollment
A3: Exhibit A
A5: School ID | B5: Site | C5: Enrollment | D5: Grade Span
A6: 4 | B6: Battery Creek High | C6: =VLOOKUP(A6,[1]Sheet1!$A$4:$C$35,3,0) -> 768 | D6: 9th to 12th
A7: 2 | B7: Beaufort High | C7: =VLOOKUP(A7,[1]Sheet1!$A$4:$C$35,3,0) -> 1,211 | D7: 9th to 12th
A8: 30 | B8: Bluffton High | C8: =VLOOKUP(A8,[1]Sheet1!$A$4:$C$35,3,0) -> 1,297 | D8: 9th to 12th
A9: 3 | B9: Hilton Head High | C9: =VLOOKUP(A9,[1]Sheet1!$A$4:$C$35,3,0) -> 1,359 | D9: 9th to 12th
A10: 39 | B10: May River High | C10: =VLOOKUP(A10,[1]Sheet1!$A$4:$C$35,3,0) -> 1,484 | D10: 9th to 12th
A11: 36 | B11: Whale Branch Early College High | C11: =VLOOKUP(A11,[1]Sheet1!$A$4:$C$35,3,0) -> 438 | D11: 9th to 12th
A12: 28 | B12: Beaufort Middle | C12: =VLOOKUP(A12,[1]Sheet1!$A$4:$C$35,3,0) -> 458 | D12: 6th to 8th
A13: 35 | B13: Bluffton Middle | C13: =VLOOKUP(A13,[1]Sheet1!$A$4:$C$35,3,0) -> 821 | D13: 6th to 8th
A14: 26 | B14: HE McCracken Middle | C14: =VLOOKUP(A14,[1]Sheet1!$A$4:$C$35,3,0) -> 930 | D14: 6th to 8th
A15: 9 | B15: Hilton Head Middle | C15: =VLOOKUP(A15,[1]Sheet1!$A$4:$C$35,3,0) -> 884 | D15: 6th to 8th
A16: 1 | B16: Lady's Island Middle | C16: =VLOOKUP(A16,[1]Sheet1!$A$4:$C$35,3,0) -> 511 | D16: 6th to 8th
A17: 27 | B17: Whale Branch Middle | C17: =VLOOKUP(A17,[1]Sheet1!$A$4:$C$35,3,0) -> 360 | D17: 5th to 8th
A18: 38 | B18: River Ridge Academy | C18: =VLOOKUP(A18,[1]Sheet1!$A$4:$C$35,3,0) -> 1,091 | D18: PreK to 8th
A19: 601 | B19: Riverview Charter | C19: =VLOOKUP(A19,[1]Sheet1!$A$4:$C$35,3,0) -> 689 | D19: Kinder to 8th
A20: 40 | B20: Robert Smalls International Academy | C20: =VLOOKUP(A20,[1]Sheet1!$A$4:$C$35,3,0) -> 648 | D20: PreK to 8th
A21: 8 | B21: Beaufort Elementary | C21: =VLOOKUP(A21,[1]Sheet1!$A$4:$C$35,3,0) -> 376 | D21: PreK to 5th
A22: 24 | B22: Bluffton Elementary | C22: =VLOOKUP(A22,[1]Sheet1!$A$4:$C$35,3,0) -> 751 | D22: PreK to 5th
A23: 10 | B23: Broad River Elementary | C23: =VLOOKUP(A23,[1]Sheet1!$A$4:$C$35,3,0) -> 448 | D23: PreK to 5th
A24: 25 | B24: Coosa Elementary | C24: =VLOOKUP(A24,[1]Sheet1!$A$4:$C$35,3,0) -> 456 | D24: PreK to 5th
A25: 31 | B25: Hilton Head ECC | C25: =VLOOKUP(A25,[1]Sheet1!$A$4:$C$35,3,0) -> 320 | D25: PreK to 5th
A26: 33 | B26: Hilton Head Elementary | C26: =VLOOKUP(A26,[1]Sheet1!$A$4:$C$35,3,0) -> 771 | D26: PreK to 5th
A27: 32 | B27: Hilton Head SCA | C27: =VLOOKUP(A27,[1]Sheet1!$A$4:$C$35,3,0) -> 596 | D27: PreK to 5th
A28: 14 | B28: Lady's Island Elementary | C28: =VLOOKUP(A28,[1]Sheet1!$A$4:$C$35,3,0) -> 223 | D28: PreK to 5th
A29: 17 | B29: MC Riley Elementary | C29: =VLOOKUP(A29,[1]Sheet1!$A$4:$C$35,3,0) -> 713 | D29: PreK to 5th
A30: 15 | B30: Mossy Oaks Elementary | C30: =VLOOKUP(A30,[1]Sheet1!$A$4:$C$35,3,0) -> 350 | D30: PreK to 5th
A31: 29 | B31: Okatie Elementary | C31: =VLOOKUP(A31,[1]Sheet1!$A$4:$C$35,3,0) -> 564 | D31: PreK to 5th
A32: 16 | B32: Port Royal Elementary | C32: =VLOOKUP(A32,[1]Sheet1!$A$4:$C$35,3,0) -> 168 | D32: PreK to 5th
A33: 37 | B33: Pritchardville Elementary | C33: =VLOOKUP(A33,[1]Sheet1!$A$4:$C$35,3,0) -> 876 | D33: PreK to 5th
A34: 34 | B34: Red Cedar Elementary | C34: =VLOOKUP(A34,[1]Sheet1!$A$4:$C$35,3,0) -> 572 | D34: PreK to 5th
A35: 22 | B35: Shanklin Elementary | C35: =VLOOKUP(A35,[1]Sheet1!$A$4:$C$35,3,0) -> 381 | D35: PreK to 5th
A36: 20 | B36: St. Helena Elementary | C36: =VLOOKUP(A36,[1]Sheet1!$A$4:$C$35,3,0) -> 344 | D36: PreK to 5th
A37: 23 | B37: Whale Branch Elementary | C37: =VLOOKUP(A37,[1]Sheet1!$A$4:$C$35,3,0) -> 381 | D37: PreK to 4th
B39: District Total | C39: 21,239
